[Event "XIX Sants Open 2017"]
[Site "Cotxeres de Sants"]
[Date "2017.08.19"]
[Round "2"]
[White "Mamah, Isabelle"]
[Black "Mut Company, Guillem"]
[Result "1/2-1/2"]
[ECO "B13"]
[WhiteElo "1807"]
[BlackElo "1948"]
[Annotator "NA RC"]
[PlyCount "219"]
[EventDate "2017.??.??"]
[EventType "swiss"]
[EventCountry "ESP"]
[SourceTitle "playchess.com"]
[Source "ChessBase"]
[SourceQuality "1"]
[TimeControl "40/5400+30:1800+30"]

1. e4 {[%emt 0:00:00]} c6 {[%emt 0:02:06]} 2. d4 {[%emt 0:00:00]} d5 {[%emt 0:00:20]} 3. exd5 {[%emt 0:00:00]} cxd5 {[%emt 0:00:11]} 4. Bd3 {[%emt 0:00:08]} Nc6 {[%emt 0:00:25]} 5. c3 {[%emt 0:00:07]} Qc7 {[%emt 0:00:04]} 6. Nf3 {[%emt 0:05:13]} Bg4 {[%emt 0:01:03]} 7. O-O {[%emt 0:00:47]} e6 {[%emt 0:01:28] LiveBook: 27 Games B13: Caro-Kann: Exchange Variation and Panov-Botvinnik Attack} 8. Nbd2 {[%emt 0:00:16]} (8. h3 $5 {[%cal Rh3g4]} Bh5 9. Re1 $11) 8... Bd6 {[%emt 0:01:21]} 9. h3 Bh5 {[%emt 0:01:06]} 10. Re1 {[%emt 0:00:26]} Nge7 {[%emt 0:05:37]} 11. Qa4 {[%emt 0:05:24]} O-O {[%emt 0:02:18]} 12. Qc2 {[%emt 0:00:10]} Bg6 {[%emt 0:01:20]} 13. Nf1 {[%emt 0:03:14]} Nb4 {[%emt 0:04:58]} 14. cxb4 {[%emt 0:00:31]} Qxc2 {[%emt 0:00:05]} 15. Bxc2 {[%emt 0:00:03]} Bxc2 {[%emt 0:00:11]} 16. Bd2 $146 {[%emt 0:03:14]} Rac8 {[%emt 0:08:39]} 17. Bc3 {[%emt 0:02:00]} Rc7 {[%emt 0:06:35]} 18. Ne3 {[%emt 0:01:56]} Ba4 {[%emt 0:03:45]} 19. a3 {[%emt 0:02:03]} Bf4 {[%emt 0:02:30]} 20. g3 {[%emt 0:04:30]} Bxe3 {[%emt 0:02:24]} 21. fxe3 {[%emt 0:00:02]} Nf5 {[%emt 0:00:39]} 22. Kf2 {[%emt 0:00:22]} Nd6 {[%emt 0:00:42]} 23. Nd2 {[%emt 0:05:59]} Nb5 {[%emt 0:08:55]} 24. Rac1 {[%emt 0:00:07]} Rfc8 {[%emt 0:01:29]} 25. Nb1 {[%emt 0:00:05]} Nd6 {[%emt 0:01:56]} 26. Nd2 {[%emt 0:01:14]} h6 {[%emt 0:06:09]} 27. Kf3 {[%emt 0:02:02]} Bd7 {[%emt 0:01:37]} 28. h4 {[%emt 0:01:32]} b6 {[%emt 0:00:44]} 29. Rg1 {[%emt 0:05:28]} Nb5 {[%emt 0:03:04]} 30. Nb1 {[%emt 0:00:05]} Nd6 {[%emt 0:01:21]} 31. Nd2 {[%emt 0:00:34]} h5 {[%emt 0:00:17]} 32. e4 {[%emt 0:04:44]} dxe4+ {[%emt 0:03:37]} 33. Ke3 {[%emt 0:01:53]} Bc6 {[%emt 0:01:04]} 34. Rcf1 {[%emt 0:06:28]} Bb5 {[%emt 0:02:45]} 35. Rf4 {[%emt 0:00:30]} Bd3 {[%emt 0:01:30]} 36. Nxe4 {[%emt 0:00:58]} Bxe4 {[%emt 0:01:41]} 37. Rxe4 {[%emt 0:00:03]} Rxc3+ {[%emt 0:07:40]} 38. bxc3 {[%emt 0:00:05]} Rxc3+ {[%emt 0:00:05]} 39. Kf4 {[%emt 0:00:16]} Nxe4 {[%emt 0:00:17]} 40. Kxe4 {[%emt 0:00:00]} Rxa3 {[%emt 0:01:28]} 41. d5 {[%emt 0:02:31]} exd5+ {[%emt 0:02:37]} 42. Kxd5 {[%emt 0:00:02]} a5 {[%emt 0:05:42]} 43. bxa5 {[%emt 0:02:09]} bxa5 {[%emt 0:00:16]} 44. Kc4 {[%emt 0:00:06]} f5 {[%emt 0:04:48]} 45. Kd5 {[%emt 0:01:52]} Kf7 {[%emt 0:02:00]} 46. Ke5 {[%emt 0:00:02]} g6 {[%emt 0:00:43]} 47. Kf4 {[%emt 0:00:18]} Kf6 {[%emt 0:02:01]} 48. Rc1 {[%emt 0:00:50]} Ra4+ {[%emt 0:00:21]} 49. Kf3 {[%emt 0:00:05]} Re4 {[%emt 0:04:23]} 50. Rc6+ {[%emt 0:00:18]} Re6 {[%emt 0:00:32]} 51. Rc4 {[%emt 0:01:32]} Ra6 {[%emt 0:01:41]} 52. Ra4 {[%emt 0:00:04]} Ke5 {[%emt 0:00:30]} 53. Ke3 {[%emt 0:00:14]} Kd5 {[%emt 0:00:42]} 54. Kd3 {[%emt 0:04:22]} Kc5 {[%emt 0:00:15]} 55. Kc3 {[%emt 0:00:20]} Kb5 {[%emt 0:00:26]} 56. Rd4 {[%emt 0:00:47]} a4 {[%emt 0:03:12]} 57. Kb2 {[%emt 0:00:17]} a3+ {[%emt 0:00:52]} 58. Ka2 {[%emt 0:00:02]} Kc5 {[%emt 0:00:46]} 59. Rf4 {[%emt 0:01:00]} Kd5 {[%emt 0:00:55]} 60. Rb4 {[%emt 0:00:08]} Ke5 {[%emt 0:00:38]} 61. Rc4 {[%emt 0:00:25]} Rd6 {[%emt 0:04:42]} 62. Rc3 {[%emt 0:01:59]} Ke4 {[%emt 0:01:03]} 63. Rxa3 {[%emt 0:00:27]} Rd2+ {[%emt 0:00:11]} 64. Kb1 {[%emt 0:00:24]} Rd3 {[%emt 0:00:39]} 65. Ra4+ {[%emt 0:00:38]} Kd5 {[%emt 0:01:17]} 66. Ra5+ {[%emt 0:00:08]} Kc4 {[%emt 0:00:12]} 67. Kc2 {[%emt 0:02:59]} Rxg3 {[%emt 0:00:33]} 68. Kd2 {[%emt 0:00:03]} Kd4 {[%emt 0:00:55]} 69. Ke2 {[%emt 0:00:06]} Ke4 {[%emt 0:00:38]} 70. Kf2 {[%emt 0:00:24]} f4 {[%emt 0:01:58]} 71. Rb5 {[%emt 0:01:04]} Ra3 {[%emt 0:01:21]} 72. Rb4+ {[%emt 0:02:26]} Kf5 {[%emt 0:00:13]} 73. Rb5+ {[%emt 0:00:10]} Ke4 {[%emt 0:01:41]} 74. Rb4+ {[%emt 0:00:14]} Ke5 {[%emt 0:02:04]} 75. Rb5+ {[%emt 0:00:32]} Kf6 {[%emt 0:03:46]} 76. Rb6+ {[%emt 0:00:03]} Kf5 {[%emt 0:03:27]} 77. Rb5+ {[%emt 0:00:02]} Kg4 {[%emt 0:00:11]} 78. Rg5+ {[%emt 0:00:03]} Kxh4 {[%emt 0:00:05]} 79. Rxg6 {[%emt 0:00:17]} Rg3 {[%emt 0:00:32]} 80. Rf6 {[%emt 0:01:26]} Kg5 {[%emt 0:00:43]} 81. Rf8 {[%emt 0:00:05]} h4 {[%emt 0:00:40]} 82. Rg8+ {[%emt 0:01:14]} Kf5 {[%emt 0:01:12]} 83. Rf8+ {[%emt 0:00:44]} Kg4 {[%emt 0:00:42]} 84. Rg8+ {[%emt 0:00:43]} Kh3 {[%emt 0:01:03]} 85. Rf8 {[%emt 0:00:42]} Rg4 {[%emt 0:01:04]} 86. Kf3 {[%emt 0:00:53]} Rg1 {[%emt 0:00:23]} 87. Kf2 {[%emt 0:00:16]} Rg2+ {[%emt 0:03:20]} 88. Kf3 {[%emt 0:00:34]} Kh2 {[%emt 0:00:27]} 89. Rxf4 {[%emt 0:00:47]} h3 {[%emt 0:00:26]} 90. Rh4 {[%emt 0:03:02]} Rg3+ {[%emt 0:01:33]} 91. Kf2 {[%emt 0:00:11]} Rg8 {[%emt 0:01:28]} 92. Rf4 {[%emt 0:08:38]} Rg2+ {[%emt 0:00:13]} 93. Kf1 {[%emt 0:00:07]} Kg3 {[%emt 0:00:34]} 94. Rf7 {[%emt 0:01:30]} Ra2 {[%emt 0:00:31]} 95. Rg7+ {[%emt 0:01:06] [#]} Kh2 $1 {[%emt 0:00:35]} 96. Rg6 {[%emt 0:00:52]} Ra1+ {[%emt 0:00:32]} 97. Kf2 {[%emt 0:00:08]} Ra2+ {[%emt 0:00:04]} 98. Kf1 {[%emt 0:00:21]} Rg2 {[%emt 0:00:20]} 99. Rh6 {[%emt 0:00:54]} Rg4 $11 {[%emt 0:00:21]} 100. Rf6 {[%emt 0:03:08]} Kh1 {[%emt 0:00:25]} 101. Kf2 {[%emt 0:01:53]} Ra4 {[%emt 0:00:56]} 102. Kf1 {[%emt 0:02:05]} Kh2 {[%emt 0:00:28]} 103. Rf3 {[%emt 0:01:04]} Ra2 {[%emt 0:00:31]} 104. Rf8 {[%emt 0:00:18]} Ra3 {[%emt 0:00:26]} 105. Kf2 {[%emt 0:00:14]} Kh1 {[%emt 0:00:24]} 106. Kf1 {[%emt 0:00:08]} h2 {[%emt 0:00:07]} 107. Rf7 {[%emt 0:01:22]} Ra2 {[%emt 0:00:21]} 108. Rf6 {[%emt 0:00:19]} Ra1+ {[%emt 0:00:46]} 109. Kf2 {[%emt 0:00:03]} Rg1 {[%emt 0:00:21]} 110. Rf7 {[%emt 0:00:20]} 1/2-1/2

[Event "XIX Sants Open 2017"]
[Site "Cotxeres de Sants"]
[Date "2017.08.19"]
[Round "2"]
[White "Aparicio Escudero, Hector F"]
[Black "Torres Janer, Marc"]
[Result "1/2-1/2"]
[ECO "A43"]
[WhiteElo "1641"]
[BlackElo "1503"]
[Annotator "NA"]
[PlyCount "108"]
[EventDate "2017.??.??"]
[EventType "swiss"]
[EventCountry "ESP"]
[SourceTitle "playchess.com"]
[Source "ChessBase"]
[SourceQuality "1"]
[TimeControl "40/5400+30:1800+30"]

1. d4 c5 2. c3 cxd4 3. cxd4 d6 4. e4 Nc6 5. Nf3 Nf6 6. Nc3 e6 7. Bb5 Bd7 8. O-O Be7 9. e5 Nd5 10. Nxd5 exd5 11. Bf4 Nxe5 12. Bxd7+ Nxd7 13. Qb3 Nb6 14. Rac1 O-O 15. Rc2 Qd7 16. Rfc1 Rfc8 17. Qd3 Rxc2 18. Rxc2 Rc8 19. b3 Rxc2 20. Qxc2 Qc8 21. Qe2 Qe6 22. Kf1 Qe4 23. Bg3 Qxe2+ 24. Kxe2 Nd7 25. Ne1 h6 26. Nc2 g6 27. Ne3 Nb6 28. a4 a5 29. f3 Nc8 30. Nxd5 Kf8 31. Kd3 Ke8 32. Kc4 Kd7 33. Be1 Bd8 34. Bd2 h5 35. h3 Kc6 36. Nc3 Nb6+ 37. Kd3 Nd5 38. Ne4 b6 39. Kc4 Nc7 40. Nc3 d5+ 41. Kd3 Bf6 42. Bf4 Ne6 43. Be3 Nc7 44. Ne2 Ne6 45. Nf4 Nxf4+ 46. Bxf4 Kd7 47. Be5 Bd8 48. Ke3 Ke6 49. g4 h4 50. Kd3 Kd7 51. Bh2 g5 52. Bg1 f6 53. Be3 Bc7 54. Bd2 Bd6 1/2-1/2

[Event "XIX Sants Open 2017"]
[Site "Cotxeres de Sants"]
[Date "2017.08.19"]
[Round "2"]
[White "Shadrin, Ilya"]
[Black "Sanchez Viana, Jordi"]
[Result "1/2-1/2"]
[ECO "A01"]
[WhiteElo "1628"]
[BlackElo "1498"]
[Annotator "NA"]
[PlyCount "66"]
[EventDate "2017.??.??"]
[EventType "swiss"]
[EventCountry "ESP"]
[SourceTitle "playchess.com"]
[Source "ChessBase"]
[SourceQuality "1"]
[TimeControl "40/5400+30:1800+30"]

1. b3 {[%emt 0:00:00]} e5 {[%emt 0:02:10]} 2. Bb2 {[%emt 0:00:00]} d6 {[%emt 0:00:17]} 3. e3 {[%emt 0:00:00]} Nf6 {[%emt 0:00:43]} 4. d4 {[%emt 0:00:14]} exd4 {[%emt 0:00:25]} 5. Bxd4 {[%emt 0:02:56]} Be7 {[%emt 0:03:27]} 6. Nf3 {[%emt 0:00:12]} Bg4 {[%emt 0:02:14]} 7. Bd3 {[%emt 0:02:19]} Nc6 {[%emt 0:02:13]} 8. Bb2 {[%emt 0:03:41]} Ne5 {[%emt 0:04:05]} 9. Nbd2 {[%emt 0:05:36]} Nxd3+ {[%emt 0:01:39]} 10. cxd3 {[%emt 0:00:06]} O-O {[%emt 0:01:26]} 11. O-O {[%emt 0:00:27]} d5 {[%emt 0:04:04]} 12. Rc1 {[%emt 0:06:28]} Bd6 {[%emt 0:04:08]} 13. Qc2 {[%emt 0:02:07]} c6 {[%emt 0:05:54]} 14. Be5 {[%emt 0:01:04]} Ba3 {[%emt 0:01:56]} 15. Rb1 {[%emt 0:00:12]} Bd6 {[%emt 0:04:08]} 16. Qc3 {[%emt 0:09:30]} Re8 {[%emt 0:04:29]} 17. a3 {[%emt 0:02:52]} Qe7 {[%emt 0:03:38]} 18. Bxd6 {[%emt 0:00:34]} Qxd6 {[%emt 0:00:43]} 19. b4 {[%emt 0:00:22]} Nd7 {[%emt 0:03:18]} 20. Qd4 {[%emt 0:01:53]} Qg6 {[%emt 0:02:16]} 21. Nh4 {[%emt 0:07:05]} Qe6 {[%emt 0:07:12]} 22. h3 {[%emt 0:03:30]} Bh5 {[%emt 0:01:54]} 23. g4 {[%emt 0:04:21]} Bg6 {[%emt 0:00:46]} 24. Nxg6 {[%emt 0:02:14]} hxg6 {[%emt 0:01:29]} 25. Kh2 {[%emt 0:02:27]} Qe5+ {[%emt 0:05:49]} 26. Qxe5 {[%emt 0:00:25]} Nxe5 {[%emt 0:00:44]} 27. d4 {[%emt 0:00:30]} Nd7 {[%emt 0:00:45]} 28. Nb3 {[%emt 0:01:42]} Nb6 {[%emt 0:04:02]} 29. Na5 {[%emt 0:02:48]} Re7 {[%emt 0:03:21]} 30. Rfc1 {[%emt 0:00:48]} a6 {[%emt 0:02:11]} 31. Rc2 {[%emt 0:04:19]} Nc8 {[%emt 0:01:53]} 32. Rbc1 {[%emt 0:00:16]} Nd6 {[%emt 0:00:47]} 33. a4 {[%emt 0:05:58]} Rae8 {[%emt 0:01:02]} 1/2-1/2

[Event "XIX Sants Open 2017"]
[Site "Cotxeres de Sants"]
[Date "2017.08.19"]
[Round "2"]
[White "Ortiz Padro, Pol"]
[Black "Fernandez Benito, Carlos Pablo"]
[Result "1/2-1/2"]
[ECO "C00"]
[WhiteElo "1500"]
[BlackElo "1632"]
[Annotator "NA"]
[PlyCount "56"]
[EventDate "2017.??.??"]
[EventType "swiss"]
[EventCountry "ESP"]
[SourceTitle "playchess.com"]
[Source "ChessBase"]
[SourceQuality "1"]
[TimeControl "40/5400+30:1800+30"]

1. e4 {[%emt 0:00:00]} e6 {[%emt 0:00:16]} 2. d4 {[%emt 0:00:00]} d5 {[%emt 0:00:10]} 3. Bd3 {[%emt 0:00:01]} dxe4 {[%emt 0:00:41]} 4. Bxe4 {[%emt 0:00:28]} Nf6 {[%emt 0:00:26]} 5. Bf3 {[%emt 0:00:58]} Be7 {[%emt 0:01:46]} 6. Ne2 {[%emt 0:00:24]} O-O {[%emt 0:01:39]} 7. c4 {[%emt 0:04:37]} c6 {[%emt 0:05:33]} 8. Nbc3 {[%emt 0:00:31]} Nbd7 {[%emt 0:00:48]} 9. Bf4 {[%emt 0:00:26]} Re8 {[%emt 0:00:42]} 10. O-O {[%emt 0:01:00]} Nf8 {[%emt 0:01:13]} 11. Re1 {[%emt 0:00:44]} Ng6 {[%emt 0:00:31]} 12. Bg3 {[%emt 0:00:30]} Bd6 {[%emt 0:01:29]} 13. Ne4 {[%emt 0:02:24]} Bxg3 {[%emt 0:02:55]} 14. N2xg3 {[%emt 0:01:33]} Nxe4 {[%emt 0:03:59]} 15. Bxe4 {[%emt 0:00:22]} f5 {[%emt 0:00:19]} 16. Bc2 {[%emt 0:00:47]} Bd7 {[%emt 0:08:47]} 17. Qd2 {[%emt 0:05:33]} Qh4 {[%emt 0:07:01]} 18. b3 {[%emt 0:00:46]} Rad8 {[%emt 0:00:50]} 19. d5 {[%emt 0:00:48]} cxd5 {[%emt 0:01:23]} 20. cxd5 {[%emt 0:00:11]} Bc6 {[%emt 0:00:56]} 21. d6 {[%emt 0:01:01]} Nf4 {[%emt 0:03:48]} 22. f3 {[%emt 0:01:57]} Nh5 {[%emt 0:06:24]} 23. Nxh5 {[%emt 0:06:48]} Qxh5 {[%emt 0:00:16]} 24. Re5 {[%emt 0:00:56]} Bd5 {[%emt 0:03:49]} 25. Bxf5 {[%emt 0:01:14]} Qf7 {[%emt 0:01:32]} 26. Qd3 {[%emt 0:05:15]} g6 {[%emt 0:01:56]} 27. Be4 {[%emt 0:02:02]} Rxd6 {[%emt 0:03:11]} 28. Re1 {[%emt 0:00:52]} Red8 {[%emt 0:03:35]} 1/2-1/2

[Event "XIX Sants Open 2017"]
[Site "Cotxeres de Sants"]
[Date "2017.08.20"]
[Round "3"]
[White "Casset Bello, Elena"]
[Black "Gonzalez Lafita, Oscar"]
[Result "1-0"]
[ECO "D35"]
[WhiteElo "1936"]
[BlackElo "1839"]
[Annotator "NA"]
[PlyCount "53"]
[EventDate "2017.??.??"]
[EventType "swiss"]
[EventCountry "ESP"]
[SourceTitle "playchess.com"]
[Source "ChessBase"]
[SourceQuality "1"]
[TimeControl "40/5400+30:1800+30"]

1. d4 d5 2. c4 e6 3. cxd5 exd5 4. Nc3 Nf6 5. Bg5 c6 6. e3 Be7 7. Qc2 Nh5 8. Bxe7 Qxe7 9. Nxd5 cxd5 10. Qxc8+ Qd8 11. Bb5+ Nc6 12. Bxc6+ bxc6 13. Qxc6+ Ke7 14. Qc5+ Ke6 15. Nf3 Rc8 16. Qxa7 Rc2 17. O-O Qc8 18. b4 Rc7 19. Qa3 Qb7 20. Rac1 Rhc8 21. Rxc7 Rxc7 22. Ne5 Qc8 23. Qa4 Rc2 24. Nd3 Ke7 25. Nc5 Rb2 26. Qa3 Re2 27. b5 1-0

[Event "XIX Sants Open 2017"]
[Site "Cotxeres de Sants"]
[Date "2017.08.20"]
[Round "3"]
[White "Olive Oller, Guim"]
[Black "Petit Montes, Marc"]
[Result "0-1"]
[ECO "D10"]
[WhiteElo "1848"]
[BlackElo "1948"]
[Annotator "NA RC"]
[PlyCount "120"]
[EventDate "2017.??.??"]
[EventType "swiss"]
[EventCountry "ESP"]
[SourceTitle "playchess.com"]
[Source "ChessBase"]
[SourceQuality "1"]
[TimeControl "40/5400+30:1800+30"]

1. d4 {[%emt 0:00:00]} d5 {[%emt 0:05:35]} 2. Nf3 {[%emt 0:00:00]} Nf6 {[%emt 0:00:04]} 3. c4 {[%emt 0:00:00]} c6 {[%emt 0:00:17]} 4. cxd5 {[%emt 0:00:20]} cxd5 {[%emt 0:00:26]} 5. Nc3 {[%emt 0:01:01]} Nc6 {[%emt 0:00:17]} 6. Bg5 {[%emt 0:01:52]} Ne4 {[%emt 0:00:54]} 7. Bh4 {[%emt 0:01:33]} Qa5 {[%emt 0:03:40] D13: Slav Defence: Exchange variation without ...Bf5} (7... Qb6 8. e3 Bf5 9. Nxd5 Qa5+ 10. Nc3 Nxc3 11. bxc3 Qxc3+ 12. Nd2 e6 13. Bb5 Bb4 14. a3 Ba5 15. Ra2 Bd3 16. Bxd3 Qxd3 17. Qc2 Bxd2+ 18. Qxd2 Qb1+ {0-1 (18) Guliev,S (2403)-Gadimbayli,A (2315) Baku 2017}) 8. Qb3 {[%emt 0:02:14]} e6 {[%emt 0:05:31]} 9. e3 {[%emt 0:00:16]} Nxc3 {[%emt 0:01:12]} 10. bxc3 {[%emt 0:00:20]} Bd6 {[%emt 0:00:15]} 11. Bd3 {[%emt 0:01:25]} b6 $146 {[%emt 0:03:39]} ({Predecessor:} 11... Qc7 12. O-O Na5 13. Qc2 Nc4 {0-1 (30) Mustafina,Y (1781)-Matsenko,A (1939) Anapa 2009}) 12. O-O {[%emt 0:07:11]} Ba6 {[%emt 0:02:31]} 13. c4 {[%emt 0:01:13]} dxc4 {[%emt 0:12:41]} 14. Bxc4 {[%emt 0:00:50]} Bxc4 {[%emt 0:00:13]} 15. Qxc4 {[%emt 0:00:07]} Rc8 {[%emt 0:00:17]} 16. Rfc1 {[%emt 0:05:28]} O-O {[%emt 0:02:56]} 17. a4 {[%emt 0:02:34]} Rc7 {[%emt 0:07:59]} 18. Qb5 {[%emt 0:02:17]} Rfc8 {[%emt 0:01:29]} 19. Bg3 {[%emt 0:03:46]} Bxg3 {[%emt 0:03:39]} 20. hxg3 {[%emt 0:04:04]} Qxb5 {[%emt 0:01:29]} 21. axb5 {[%emt 0:00:15]} Nxd4 {[%emt 0:00:20]} 22. Rxc7 {[%emt 0:01:02]} Nxf3+ {[%emt 0:00:10]} 23. gxf3 {[%emt 0:00:06]} Rxc7 {[%emt 0:00:07]} 24. Kf1 {[%emt 0:01:24]} Kf8 {[%emt 0:00:17]} 25. Ke2 {[%emt 0:00:10]} Ke7 {[%emt 0:00:46]} 26. Kd3 {[%emt 0:00:21]} Kd7 {[%emt 0:04:59]} 27. Ra4 {[%emt 0:04:04]} Kc8 {[%emt 0:06:05]} 28. Rh4 {[%emt 0:04:15]} h6 {[%emt 0:00:15]} 29. Rg4 {[%emt 0:03:57]} f6 {[%emt 0:05:28]} 30. Re4 {[%emt 0:02:29]} Rc5 {[%emt 0:02:33]} 31. Rg4 {[%emt 0:04:50]} Rg5 {[%emt 0:05:39]} 32. Rb4 {[%emt 0:00:52]} Kb7 {[%emt 0:01:03]} 33. f4 {[%emt 0:05:20]} Rc5 {[%emt 0:00:28]} 34. Rd4 {[%emt 0:05:59]} Rxb5 {[%emt 0:13:45]} 35. Rd7+ {[%emt 0:00:18]} Ka6 {[%emt 0:00:15]} ({Black should try} 35... Kc6 $15 36. Rxa7 Rd5+ 37. Kc4 Rd7) 36. Rxg7 {[%emt 0:00:21]} Rd5+ {[%emt 0:00:40]} 37. Kc3 {[%emt 0:03:30]} Rc5+ {[%emt 0:03:28]} 38. Kd3 {[%emt 0:07:03]} Rd5+ {[%emt 0:00:08]} 39. Kc3 {[%emt 0:00:38]} f5 {[%emt 0:03:49]} 40. Rh7 {[%emt 0:00:00]} b5 {[%emt 0:01:06]} 41. Rxh6 {[%emt 0:01:45]} Rd6 {[%emt 0:00:35]} 42. f3 {[%emt 0:02:45]} Kb6 {[%emt 0:00:30]} 43. g4 {[%emt 0:01:28]} Kc5 {[%emt 0:10:23]} 44. g5 {[%emt 0:04:52]} (44. Rh5 $1 $11 {keeps the balance.}) 44... b4+ {[%emt 0:01:09]} 45. Kb2 {[%emt 0:04:27]} Kc4 {[%emt 0:03:16]} 46. g6 $2 {[%emt 0:03:52]} (46. Rh2 $17) 46... Rd2+ {[%emt 0:01:08]} 47. Kc1 {[%emt 0:05:43]} Rg2 {[%emt 0:02:00]} 48. Rh7 {[%emt 0:03:31]} a5 {[%emt 0:08:07]} 49. e4 {[%emt 0:01:37]} Rxg6 {[%emt 0:01:35]} 50. exf5 {[%emt 0:01:36]} exf5 {[%emt 0:00:11]} (50... Rg1+ $142 51. Kc2 Rg2+ 52. Kc1 exf5 53. Rh5 Kc3 54. Rh1 Rf2 55. Kb1 a4 56. Ka1 b3 57. Kb1 Rxf3 58. Rg1 Rxf4 59. Rc1+ Kb4 60. Rc6 Rf1+ 61. Rc1 Rxc1+ 62. Kxc1 a3 63. Kd2 a2 64. Ke3 a1=Q 65. Kf3 b2 66. Kg3 b1=Q 67. Kf4 Qe4+ 68. Kg5 Qg7+ 69. Kh5 Qh1#) 51. Ra7 {[%emt 0:01:43]} Kb5 {[%emt 0:01:23]} (51... Rg1+ $142 52. Kb2 Rg2+ 53. Kc1 {[#]} a4 $1 {[%mdl 512]}) 52. Rf7 {[%emt 0:04:46]} Rc6+ {[%emt 0:00:19]} 53. Kb2 {[%emt 0:01:23]} Rc5 {[%emt 0:00:05]} 54. Rf8 {[%emt 0:02:37]} a4 {[%emt 0:01:11]} 55. Rf7 {[%emt 0:01:58]} Kc4 {[%emt 0:00:41]} (55... a3+ $142 56. Kb1 Ka4 57. Rd7 Rc3 58. Rh7 Rxf3 59. Ra7+ Kb3 60. Kc1 Rxf4 61. Kd2 a2 62. Ke3 Re4+ 63. Kd3 Kb2 64. Ra5 a1=Q 65. Rxa1 Kxa1 66. Kc2 Ka2 67. Kd2 b3 68. Kc3 b2 69. Kc2 b1=Q+ 70. Kd2 Qb2+ 71. Kd3 Qe2+ 72. Kc3 Rc4#) 56. Rd7 {[%emt 0:00:53]} Rd5 {[%emt 0:01:17]} 57. Ra7 {[%emt 0:03:28]} a3+ {[%emt 0:01:20]} 58. Kc1 {[%emt 0:00:13]} Kb3 {[%emt 0:00:51]} 59. Re7 {[%emt 0:01:07]} Rc5+ {[%emt 0:00:59]} 60. Kd1 {[%emt 0:00:17]} a2 {[%emt 0:00:16]} 0-1

[Event "XIX Sants Open 2017"]
[Site "Cotxeres de Sants"]
[Date "2017.08.20"]
[Round "3"]
[White "Barroso Quinones, Antonio"]
[Black "Marza Vendrell, Conrado"]
[Result "0-1"]
[ECO "A56"]
[WhiteElo "1846"]
[BlackElo "1943"]
[Annotator "NA RC"]
[PlyCount "118"]
[EventDate "2017.??.??"]
[EventType "swiss"]
[EventCountry "ESP"]
[SourceTitle "playchess.com"]
[Source "ChessBase"]
[SourceQuality "1"]
[TimeControl "40/5400+30:1800+30"]

1. d4 {[%emt 0:02:27]} Nf6 {[%emt 0:00:21]} 2. c4 {[%emt 0:00:04]} c5 {[%emt 0:00:05]} 3. d5 {[%emt 0:00:45]} e5 {[%emt 0:00:09]} 4. g3 {[%emt 0:00:42]} d6 {[%emt 0:00:12]} 5. Bg2 {[%emt 0:00:12]} Be7 {[%emt 0:00:13]} 6. e3 {[%emt 0:00:45]} Nbd7 {[%emt 0:00:40]} 7. Ne2 {[%emt 0:00:10]} Nf8 {[%emt 0:00:11]} 8. Nbc3 {[%emt 0:00:47]} Ng6 {[%emt 0:00:18]} 9. O-O {[%emt 0:01:17]} O-O {[%emt 0:00:08]} 10. a4 {[%emt 0:01:05]} Bd7 {[%emt 0:01:45]} 11. a5 {[%emt 0:00:30]} Qc8 {[%emt 0:00:36]} 12. Ne4 {[%emt 0:04:33]} Nxe4 {[%emt 0:02:19]} 13. Bxe4 {[%emt 0:00:05]} Bh3 {[%emt 0:02:30]} 14. Bg2 {[%emt 0:00:50]} Bxg2 {[%emt 0:00:52]} 15. Kxg2 {[%emt 0:00:05]} f5 {[%emt 0:00:14]} 16. Bd2 {[%emt 0:01:34]} Qd7 {[%emt 0:11:17]} 17. a6 {[%emt 0:07:18]} b6 {[%emt 0:02:49]} 18. Qa4 {[%emt 0:01:29]} Rfd8 {[%emt 0:03:36]} 19. f4 {[%emt 0:03:39]} exf4 {[%emt 0:04:13]} 20. exf4 {[%emt 0:01:19]} Bf6 {[%emt 0:02:20]} 21. Qxd7 {[%emt 0:00:56]} Rxd7 {[%emt 0:00:11]} 22. Bc3 {[%emt 0:01:45]} Re8 {[%emt 0:06:16]} 23. Kf2 {[%emt 0:09:45]} Re4 {[%emt 0:04:04]} 24. Bxf6 {[%emt 0:00:26]} gxf6 {[%emt 0:00:13]} 25. Rac1 {[%emt 0:09:56]} Ne7 {[%emt 0:21:06]} 26. Rfe1 {[%emt 0:02:16]} b5 {[%emt 0:05:14]} 27. b3 {[%emt 0:02:07]} b4 {[%emt 0:01:59]} 28. Ng1 {[%emt 0:02:32]} Nc8 {[%emt 0:07:21]} 29. Nf3 {[%emt 0:01:30]} Kf7 {[%emt 0:03:37]} 30. Nh4 {[%emt 0:00:29]} Ne7 {[%emt 0:01:29]} 31. Rxe4 {[%emt 0:02:40]} fxe4 {[%emt 0:00:02]} 32. f5 {[%emt 0:00:02]} Nc8 {[%emt 0:04:27]} 33. Re1 {[%emt 0:01:46]} Re7 {[%emt 0:00:09]} 34. Ke3 {[%emt 0:00:16]} Nb6 {[%emt 0:00:18]} 35. Kf4 {[%emt 0:01:08]} (35. Ng2 $18) 35... Nd7 {[%emt 0:00:06]} 36. Rxe4 {[%emt 0:00:48]} Rxe4+ {[%emt 0:00:22]} 37. Kxe4 {[%emt 0:00:06]} Nb8 {[%emt 0:00:06]} 38. Ng2 {[%emt 0:01:44]} Nxa6 {[%emt 0:00:12]} 39. Nf4 {[%emt 0:00:10]} Nb8 {[%emt 0:01:19]} 40. Ne6 {[%emt 0:00:00]} Nd7 {[%emt 0:01:08]} 41. Nd8+ {[%emt 0:03:18]} Ke8 {[%emt 0:02:32]} 42. Nb7 {[%emt 0:00:21]} Ke7 {[%emt 0:00:51]} 43. h4 {[%emt 0:05:17]} Ne5 {[%emt 0:01:22]} 44. Kf4 {[%emt 0:04:26]} Nxc4 {[%emt 0:03:50]} 45. g4 {[%emt 0:02:30]} ({But not} 45. bxc4 $2 b3) 45... Nb6 {[%emt 0:03:45]} (45... a5 $142 46. Ke4 Nd2+ 47. Kd3 Nxb3) 46. Ke4 {[%emt 0:00:47]} c4 {[%emt 0:00:44]} 47. bxc4 {[%emt 0:00:51]} Nxc4 {[%emt 0:00:17]} 48. Kd3 {[%emt 0:02:28]} b3 {[%emt 0:01:47]} 49. Kc3 {[%emt 0:00:13]} b2 {[%emt 0:00:11]} 50. Kc2 {[%emt 0:00:06]} a5 {[%emt 0:00:43]} 51. g5 {[%emt 0:01:14]} fxg5 {[%emt 0:00:23]} 52. hxg5 {[%emt 0:00:32]} a4 {[%emt 0:00:12]} 53. f6+ {[%emt 0:03:26]} Ke8 {[%emt 0:05:03]} 54. Nxd6+ {[%emt 0:02:50]} Nxd6 55. Kxb2 Ne4 {[%emt 0:01:16]} 56. Ka3 {[%emt 0:00:53]} Nxg5 {[%emt 0:01:51]} 57. Kxa4 {[%emt 0:00:26]} h5 {[%emt 0:00:11]} 58. Kb5 {[%emt 0:01:02]} h4 {[%emt 0:00:33]} 59. d6 {[%emt 0:00:47]} Kd7 {[%emt 0:00:30]} 0-1

[Event "XIX Sants Open 2017"]
[Site "Cotxeres de Sants"]
[Date "2017.08.20"]
[Round "3"]
[White "Serentill Tost, Eduard"]
[Black "Lopez Arjona, Emilio"]
[Result "0-1"]
[ECO "B84"]
[WhiteElo "1619"]
[BlackElo "1547"]
[Annotator "NA"]
[PlyCount "43"]
[EventDate "2017.??.??"]
[EventType "swiss"]
[EventCountry "ESP"]
[SourceTitle "playchess.com"]
[Source "ChessBase"]
[SourceQuality "1"]
[TimeControl "40/5400+30:1800+30"]

1. e4 c5 2. Nf3 d6 3. d4 cxd4 4. Nxd4 Nf6 5. Nc3 a6 6. Be2 e6 7. Be3 Be7 8. Qd2 Qc7 9. O-O-O e5 10. Nf3 O-O 11. h3 b5 12. Nd5 Nxd5 13. exd5 Bf5 14. g4 Be4 15. Rhg1 Nd7 16. Ng5 Bxg5 17. Bxg5 Rfc8 18. c3 Qa5 19. b4 Qa3+ 20. Qb2 Rxc3+ 21. Kd2 Rc1 22. Qb1 0-1